bitfinex/quotes_BTCUSD_20250328
["timestamp","ask_amount","ask_price","bid_price","bid_amount"]
[1743156037335,0.1173,85256.0,85255.0,0.84935449]
[1743156040855,0.0003382,85274.0,85261.0,0.005]
[1743156041033,0.0003382,85274.0,85273.0,0.45296549]
[1743156041312,0.0003382,85274.0,85273.0,1.14296549]
[1743156041724,0.0003382,85274.0,85273.0,1.96059649]
[1743156041931,0.0003382,85274.0,85273.0,1.94453249]
[1743156042550,0.0003382,85274.0,85273.0,1.99613249]
[1743156043579,0.0003382,85274.0,85273.0,2.00213249]
[1743156043909,0.0003382,85274.0,85273.0,1.99713249]
[1743156044337,0.0003382,85274.0,85273.0,2.00313249]
[1743156044980,8.8e-07,85275.0,85274.0,0.56580485]
[1743156045196,0.0003378,85277.0,85274.0,0.56580485]
[1743156045197,8.8e-07,85277.0,85276.0,0.64719885]
[1743156045407,8.8e-07,85277.0,85276.0,5.78645649]
[1743156045614,8.8e-07,85277.0,85276.0,0.78645649]
[1743156048143,8.8e-07,85277.0,85276.0,0.79245649]
[1743156048362,8.8e-07,85277.0,85276.0,0.79845649]
[1743156053498,8.8e-07,85277.0,85276.0,0.79862559]
[1743156053883,8.8e-07,85277.0,85276.0,0.93038559]
[1743156058662,8.8e-07,85277.0,85276.0,0.79862559]
[1743156058835,8.8e-07,85277.0,85276.0,0.93038559]
[1743156059210,8.8e-07,85277.0,85276.0,0.90538559]
[1743156061551,8.8e-07,85277.0,85276.0,0.77362559]
[1743156061742,8.8e-07,85277.0,85276.0,0.90538559]
[1743156063630,8.8e-07,85277.0,85276.0,0.9418194]
[1743156064171,8.8e-07,85277.0,85276.0,0.8100594]
[1743156064375,8.8e-07,85277.0,85276.0,0.79551855]
[1743156064576,8.8e-07,85277.0,85276.0,0.37268474]
[1743156064802,8.8e-07,85277.0,85276.0,0.50444474]
[1743156065638,8.8e-07,85277.0,85276.0,0.51898559]
[1743156065844,8.8e-07,85277.0,85276.0,0.51298559]
[1743156066098,8.8e-07,85277.0,85276.0,0.51898559]
[1743156066307,8.8e-07,85277.0,85276.0,0.37268474]
[1743156066557,8.8e-07,85277.0,85276.0,0.50444474]
[1743156066965,8.8e-07,85277.0,85276.0,0.49844474]
[1743156067175,8.8e-07,85277.0,85276.0,0.51298559]
[1743156067388,8.8e-07,85277.0,85276.0,0.50444474]
[1743156067596,8.8e-07,85277.0,85276.0,0.51298559]
[1743156067797,8.8e-07,85277.0,85276.0,0.50698559]
[1743156068225,8.8e-07,85277.0,85276.0,0.51798559]
[1743156068965,0.33909457,85277.0,85276.0,0.12542674]
[1743156069175,0.40506757,85277.0,85276.0,0.0111691]
[1743156069383,0.67695588,85277.0,85276.0,0.0111691]
[1743156069590,0.68862776,85277.0,85276.0,0.0111691]
[1743156070063,0.68862776,85277.0,85276.0,0.0051691]
[1743156070290,0.68862776,85277.0,85276.0,0.0111691]
[1743156070649,0.68862776,85277.0,85276.0,0.0061691]
[1743156070844,0.68862776,85277.0,85276.0,0.0001691]
[1743156071161,0.68862776,85277.0,85276.0,0.0071691]
[1743156071307,0.68862776,85277.0,85276.0,0.0021691]
[1743156071740,0.68862776,85277.0,85276.0,0.0031691]
[1743156079906,0.74118482,85277.0,85276.0,0.0031691]
[1743156080263,0.68862776,85277.0,85276.0,0.0031691]
[1743156085177,0.68862776,85277.0,85276.0,0.0011691]
[1743156085587,0.68862776,85277.0,85276.0,0.0001691]
[1743156086510,0.68862776,85277.0,85276.0,0.0021691]
[1743156088008,0.83723365,85277.0,85276.0,0.0021691]
[1743156088222,0.95149129,85277.0,85276.0,1e-07]
[1743156088428,0.246316,85256.0,85255.0,0.0001691]
[1743156088632,0.376416,85256.0,85255.0,0.00030275]
[1743156088863,0.4164032,85256.0,85255.0,0.00030275]
[1743156090667,0.376416,85256.0,85255.0,0.00130275]
[1743156092185,0.4004732,85256.0,85255.0,0.00130275]
[1743156095563,0.7004732,85256.0,85255.0,0.00130275]
[1743156099960,0.73482144,85256.0,85255.0,0.00130275]
[1743156100377,0.84907908,85256.0,85255.0,7.5e-07]
[1743156100598,0.672231,85251.0,85235.0,0.0001691]
[1743156100804,0.672231,85251.0,85250.0,0.00021358]
[1743156102912,0.673231,85251.0,85250.0,0.00021358]
[1743156105732,1.090931,85251.0,85250.0,0.00021358]
[1743156115871,0.7187,85251.0,85250.0,0.00021358]
[1743156116072,0.965031,85251.0,85250.0,0.00021358]
[1743156116798,1.07928864,85251.0,85250.0,0.00021358]
[1743156117601,0.66058864,85251.0,85250.0,0.00021358]
[1743156119022,0.547331,85251.0,85250.0,0.00021358]
[1743156119373,0.546331,85251.0,85250.0,0.00021358]
[1743156130977,0.534601,85251.0,85250.0,0.00021358]
[1743156131403,0.546331,85251.0,85250.0,0.00021358]
[1743156132048,0.546331,85251.0,85250.0,0.00121358]
[1743156132274,0.0003382,85255.0,85251.0,0.076]
[1743156132506,0.0003382,85255.0,85253.0,0.234594]
[1743156132715,0.246327,85252.0,85251.0,0.076]
[1743156133670,0.234596,85253.0,85251.0,0.076]
[1743156133871,0.234598,85252.0,85251.0,0.076]
[1743156135253,0.0120672,85255.0,85253.0,0.234595]
[1743156135254,0.0003382,85255.0,85253.0,0.234595]
[1743156135491,0.0003382,85255.0,85254.0,0.34885064]
[1743156135733,0.0003382,85255.0,85254.0,0.36057964]
[1743156136188,0.0003382,85255.0,85254.0,0.11425764]
[1743156136189,0.2466572,85255.0,85254.0,0.11425764]
[1743156136648,0.246327,85252.0,85251.0,0.076]
[1743156136867,0.246331,85251.0,85250.0,0.00021358]
[1743156137899,0.246374,85236.0,85224.0,0.10547737]
[1743156138139,0.546382,85233.0,85224.0,0.10547737]
[1743156139246,0.546382,85233.0,85219.0,0.10547737]
[1743156139973,0.546382,85233.0,85232.0,0.001169]
[1743156140514,0.55834504,85233.0,85232.0,0.001169]
[1743156141079,0.56704081,85233.0,85232.0,0.001169]
[1743156141819,0.54642,85220.0,85219.0,0.10547737]
[1743156142762,0.24644,85213.0,85211.0,0.0021691]
[1743156143272,0.24644,85213.0,85212.0,0.0006121]
[1743156144368,0.24644,85213.0,85212.0,0.0026121]
[1743156145059,0.24644,85213.0,85212.0,0.0056121]
[1743156145732,0.24644,85213.0,85212.0,0.0006121]
[1743156145975,0.24644,85213.0,85212.0,0.0016121]
[1743156149111,0.3203711,85213.0,85212.0,0.0016121]
[1743156150556,0.24644,85213.0,85212.0,0.0016121]
[1743156158901,0.22622546,85213.0,85212.0,0.0016121]
[1743156160043,0.23796046,85213.0,85212.0,0.0016121]
[1743156164488,0.23796046,85213.0,85212.0,0.0845121]
[1743156166902,0.23796046,85213.0,85212.0,0.0016121]
[1743156167327,0.31221711,85213.0,85212.0,0.0016121]
[1743156167982,0.23796046,85213.0,85212.0,0.0016121]
[1743156171057,0.23829886,85213.0,85212.0,0.0016121]
[1743156172685,0.53829886,85213.0,85212.0,0.001443]
[1743156172891,0.53829886,85213.0,85209.0,0.0114911]
[1743156172892,0.546449,85210.0,85209.0,0.0114911]
[1743156173065,0.66070664,85210.0,85209.0,0.01160593]
[1743156173259,0.66070664,85210.0,85209.0,0.00660593]
[1743156174170,0.55541474,85210.0,85209.0,0.00660593]
[1743156175220,0.246449,85210.0,85209.0,0.00660593]
[1743156175518,0.246449,85210.0,85209.0,0.08170593]
[1743156178853,0.95905764,85210.0,85190.0,9e-07]
[1743156179058,0.546504,85191.0,85190.0,6.331e-05]
[1743156180903,0.56957487,85191.0,85190.0,6.331e-05]
[1743156181115,0.58356266,85191.0,85190.0,6.331e-05]
[1743156182744,0.59235715,85191.0,85190.0,6.331e-05]
[1743156183620,0.70661479,85191.0,85190.0,6.331e-05]
[1743156184408,0.59235715,85191.0,85190.0,6.331e-05]
[1743156192214,0.58356266,85191.0,85190.0,6.331e-05]
[1743156196153,0.59219739,85191.0,85190.0,6.331e-05]
[1743156196865,0.56049179,85191.0,85190.0,6.331e-05]
[1743156197819,0.24875379,85191.0,85190.0,6.331e-05]
[1743156198495,0.24875379,85191.0,85190.0,0.08226331]
[1743156198496,0.002,85191.0,85190.0,0.08226331]
[1743156198756,0.234765,85192.0,85190.0,0.08226331]
[1743156199022,0.234766,85191.0,85190.0,0.08226331]
[1743156199510,0.234765,85192.0,85190.0,0.19652095]
[1743156199728,0.246492,85195.0,85191.0,0.34902364]
[1743156199962,0.234755,85195.0,85192.0,0.234763]
[1743156200203,0.01173879,85195.0,85193.0,0.34901564]
[1743156200472,0.534747,85198.0,85195.0,0.234755]
[1743156200691,0.234756,85195.0,85193.0,0.11425764]
[1743156200924,0.234758,85194.0,85193.0,0.11425764]
[1743156201145,0.246495,85194.0,85193.0,0.11425764]
[1743156204285,0.24625531,85195.0,85193.0,0.11425764]
[1743156204439,0.01149931,85195.0,85194.0,0.234758]
[1743156204646,0.234755,85195.0,85193.0,0.34901764]
[1743156204841,0.234755,85195.0,85193.0,0.11425764]
[1743156205459,0.234755,85195.0,85193.0,0.34901764]
[1743156205834,0.24663935,85195.0,85193.0,0.34901764]
[1743156206039,0.01188435,85195.0,85193.0,0.34901764]
[1743156206238,0.234755,85195.0,85193.0,0.11425764]
[1743156206443,0.001,85195.0,85194.0,0.234758]
[1743156206846,0.001,85195.0,85194.0,0.37529349]
[1743156207063,0.001,85195.0,85194.0,0.45029349]
[1743156207301,0.0003384,85200.0,85198.0,0.234746]
[1743156207510,0.2350794,85200.0,85199.0,0.11425764]
[1743156207718,0.2468164,85200.0,85199.0,0.11325764]
[1743156208539,0.0003384,85200.0,85199.0,0.11325764]
[1743156208939,0.2350794,85200.0,85199.0,0.11325764]
[1743156209141,0.0003384,85200.0,85199.0,0.11325764]
[1743156209375,0.0003384,85200.0,85199.0,0.34800164]
[1743156209800,0.0003384,85200.0,85199.0,0.11325764]
[1743156210000,0.0003384,85200.0,85199.0,0.34900164]
[1743156210421,0.0003384,85200.0,85199.0,0.35100164]
[1743156211560,0.0003384,85200.0,85199.0,0.11625764]
[1743156212638,0.2350794,85200.0,85199.0,0.11625764]
[1743156213607,0.0003384,85200.0,85199.0,0.11625764]
[1743156214007,0.2350794,85200.0,85199.0,0.11625764]
[1743156214203,0.3242878,85200.0,85199.0,0.11625764]
[1743156214420,0.2350794,85200.0,85199.0,0.11625764]
[1743156214901,0.0003384,85200.0,85199.0,0.11625764]
[1743156215761,0.2350794,85200.0,85199.0,0.11625764]
[1743156216816,0.0003384,85200.0,85199.0,0.35100164]
[1743156217018,0.2350794,85200.0,85199.0,0.11625764]
[1743156217836,0.0003384,85200.0,85199.0,0.11625764]
[1743156218694,0.2350794,85200.0,85199.0,0.11625764]
[1743156219106,0.0003384,85200.0,85199.0,0.36273864]
[1743156219310,0.0003384,85200.0,85199.0,0.36290764]
[1743156220115,0.0003384,85200.0,85199.0,0.37744849]
[1743156220247,0.0003384,85200.0,85199.0,0.46054849]
[1743156221938,0.0003384,85200.0,85199.0,0.45954849]
[1743156222318,0.0003384,85200.0,85199.0,0.46154849]
[1743156222660,0.0003384,85200.0,85199.0,0.45954849]
[1743156223053,0.0003384,85200.0,85199.0,0.46254849]
[1743156226354,0.0003384,85200.0,85199.0,0.59490849]
[1743156229997,0.0003384,85200.0,85199.0,0.64190849]
[1743156230855,0.0003384,85200.0,85199.0,0.63890849]
[1743156231059,0.0003384,85200.0,85199.0,0.65052615]
[1743156231472,0.0003384,85200.0,85199.0,0.63890849]
[1743156231931,0.0003384,85200.0,85199.0,0.63690849]
[1743156232134,0.0003384,85200.0,85199.0,0.64190849]
[1743156232354,0.0003384,85200.0,85199.0,0.64590849]
[1743156235421,0.0003384,85200.0,85199.0,0.59878849]
[1743156235657,0.2350794,85200.0,85199.0,0.12242664]
[1743156235852,0.2350794,85200.0,85199.0,0.13696749]
[1743156236027,0.2350794,85200.0,85199.0,0.12242664]
[1743156236028,0.2468164,85200.0,85199.0,0.12242664]
[1743156236224,0.2350794,85200.0,85199.0,0.12242664]
[1743156236453,0.2350794,85200.0,85199.0,0.13696749]
[1743156236899,0.2350794,85200.0,85189.0,5.1e-07]
[1743156236900,0.546507,85190.0,85189.0,5.1e-07]
[1743156237098,0.78946464,85190.0,85189.0,5.1e-07]
[1743156237330,0.86277237,85190.0,85189.0,5.1e-07]
[1743156238356,0.86277237,85190.0,85181.0,0.002]
[1743156238357,0.629422,85185.0,85184.0,7.1e-07]
[1743156238571,0.74367964,85185.0,85184.0,7.1e-07]
[1743156242521,0.74667964,85185.0,85184.0,0.00016971]
[1743156243485,1.16437964,85185.0,85184.0,0.00016971]
[1743156244311,1.16437964,85185.0,85184.0,7.1e-07]
[1743156244512,1.16437964,85185.0,85181.0,0.002]
[1743156244513,0.54653,85182.0,85181.0,7.1e-07]
[1743156244719,0.79354764,85182.0,85181.0,7.1e-07]
[1743156245867,0.79954764,85182.0,85181.0,7.1e-07]
[1743156249424,1.21724764,85182.0,85181.0,7.1e-07]
[1743156252072,1.08448764,85182.0,85181.0,7.1e-07]
[1743156252273,1.19874528,85182.0,85181.0,7.1e-07]
[1743156253857,1.19874528,85182.0,85181.0,7.1e-07]
[1743156254055,1.19874528,85182.0,85181.0,0.00016981]
[1743156257071,1.19874528,85182.0,85181.0,8.1e-07]
[1743156259797,0.546579,85165.0,85164.0,1e-07]
[1743156259972,1.07853664,85165.0,85164.0,1e-07]
[1743156260218,0.964279,85165.0,85164.0,1e-07]
[1743156261231,0.9653416,85165.0,85164.0,1e-07]
[1743156261675,0.9643416,85165.0,85164.0,1e-07]
[1743156261882,0.97893027,85165.0,85164.0,1e-07]
[1743156262833,1.00240583,85165.0,85164.0,1e-07]
[1743156263625,1.00440583,85165.0,85164.0,1e-07]
[1743156263826,1.01316151,85165.0,85164.0,1e-07]
[1743156269439,0.59546151,85165.0,85164.0,1e-07]
[1743156270378,0.70971915,85165.0,85164.0,1e-07]
[1743156272876,0.79081915,85165.0,85164.0,1e-07]
[1743156273078,0.90507679,85165.0,85164.0,1e-07]
[1743156273280,0.81810718,85165.0,85164.0,1e-07]
[1743156273485,0.5895919,85165.0,85164.0,1e-07]
[1743156280616,0.5899301,85165.0,85164.0,1e-07]
[1743156282598,0.56645454,85165.0,85164.0,1e-07]
[1743156283898,0.58953054,85165.0,85164.0,1e-07]
[1743156288747,0.58453054,85165.0,85164.0,1e-07]
[1743156289370,0.58653054,85165.0,85164.0,1e-07]
[1743156290910,0.58753054,85165.0,85164.0,1e-07]
[1743156291516,0.58653054,85165.0,85164.0,1e-07]
[1743156291722,0.58453054,85165.0,85164.0,1e-07]
[1743156292070,0.58553054,85165.0,85164.0,1e-07]
[1743156293453,0.58453054,85165.0,85164.0,1e-07]
[1743156293566,0.58553054,85165.0,85164.0,1e-07]
[1743156293992,0.31298947,85165.0,85164.0,1e-07]
[1743156294190,0.31298947,85165.0,85164.0,0.2348411]
[1743156294602,0.31298947,85165.0,85164.0,1e-07]
[1743156294996,0.01198947,85165.0,85164.0,1e-07]
[1743156295166,0.55856847,85165.0,85164.0,0.0760001]
[1743156295370,0.55956847,85165.0,85164.0,0.0770001]
[1743156296261,0.31298947,85165.0,85164.0,0.0770001]
[1743156296662,0.31298947,85165.0,85164.0,0.3118411]
[1743156297409,0.54782747,85165.0,85164.0,0.0770001]
[1743156297783,0.31298947,85165.0,85164.0,0.0770001]
[1743156297973,0.55956847,85165.0,85164.0,0.0770001]
[1743156298179,0.31298947,85165.0,85164.0,0.0770001]
[1743156298576,0.31298947,85165.0,85164.0,0.3118411]
[1743156298888,0.31298947,85165.0,85164.0,0.0770001]
[1743156299594,0.55956847,85165.0,85164.0,0.0770001]
[1743156299971,0.31298947,85165.0,85164.0,0.0770001]
[1743156300211,0.54782747,85165.0,85164.0,0.0770001]
[1743156300421,0.01298947,85165.0,85164.0,0.3235831]
[1743156300648,0.0014008,85165.0,85164.0,0.3685831]
[1743156301771,0.0004008,85165.0,85164.0,0.3675831]
[1743156301958,0.0014008,85165.0,85164.0,0.3685831]
[1743156302356,0.0004008,85165.0,85164.0,0.3675831]
[1743156302910,0.0004008,85165.0,85164.0,0.3705831]
[1743156303331,0.0004008,85165.0,85164.0,0.38158471]
[1743156303771,0.0004008,85165.0,85164.0,0.6431832]
[1743156304430,0.0004008,85165.0,85164.0,0.6441832]
[1743156304806,0.0004008,85165.0,85164.0,0.6481832]
[1743156305007,0.0004008,85165.0,85164.0,0.6441832]
[1743156305308,0.0004008,85165.0,85164.0,0.6461832]
[1743156305526,0.0014008,85165.0,85164.0,0.6511832]
[1743156306108,0.0014008,85165.0,85164.0,1.1536902]
[1743156307198,0.0014008,85165.0,85164.0,1.0901972]
[1743156308028,0.0014008,85165.0,85164.0,1.0072572]
[1743156308441,0.0014008,85165.0,85164.0,0.9107642]
[1743156309075,0.0014008,85165.0,85164.0,0.6511832]
[1743156309287,0.0014008,85165.0,85164.0,1.3252762]
[1743156309466,0.0014008,85165.0,85164.0,1.2794282]
[1743156309661,0.0014008,85165.0,85164.0,0.7975742]
[1743156313163,8e-07,85165.0,85164.0,0.7975742]
[1743156313368,8e-07,85165.0,85164.0,0.6565432]
[1743156313715,8e-07,85165.0,85164.0,0.69307389]
[1743156314239,8e-07,85165.0,85164.0,0.68707389]
[1743156314382,0.0003382,85185.0,85181.0,0.322233]
[1743156314601,0.0003382,85185.0,85181.0,1.19089149]
[1743156314925,0.0003382,85185.0,85181.0,4.14752249]
[1743156315126,0.0003382,85185.0,85181.0,4.1585241]
[1743156315913,0.0003382,85185.0,85181.0,4.1635241]
[1743156318249,0.0003382,85185.0,85181.0,4.1695241]
[1743156319232,0.0003382,85185.0,85181.0,4.1645241]
[1743156319468,0.0003382,85185.0,85181.0,4.1695241]
[1743156319852,0.0003382,85185.0,85181.0,1.2128931]
[1743156320066,0.0003382,85185.0,85181.0,4.2288291]
[1743156320265,0.0003382,85185.0,85181.0,4.1564491]
[1743156320827,0.0003382,85185.0,85181.0,4.1624491]
[1743156321246,0.0003382,85185.0,85181.0,4.18609138]
[1743156321676,0.0003382,85185.0,85181.0,1.0799331]
[1743156321872,0.0003382,85185.0,85181.0,1.2127331]
[1743156322025,0.0003382,85185.0,85181.0,1.0799331]
[1743156322227,0.0003382,85185.0,85181.0,1.2126931]
[1743156332915,0.0003382,85185.0,85181.0,2.9851751]
[1743156333117,0.0003382,85185.0,85181.0,2.3220601]
[1743156333339,0.0003382,85185.0,85181.0,1.9615371]
[1743156333692,0.0003382,85185.0,85181.0,1.9665371]
[1743156333888,0.0003382,85185.0,85181.0,1.9605371]
[1743156334093,0.0003382,85185.0,85181.0,1.9555371]
[1743156334303,0.0003382,85185.0,85181.0,1.9675371]
[1743156336643,0.0003382,85185.0,85181.0,1.8487281]
[1743156336937,0.0003382,85185.0,85181.0,1.7766491]
[1743156337436,0.0003382,85185.0,85181.0,1.7452141]
[1743156338140,0.0003382,85185.0,85181.0,1.15061225]
[1743156338389,0.0003382,85185.0,85181.0,0.93085325]
[1743156338600,0.0003382,85185.0,85181.0,1.15727225]
[1743156338798,0.0003382,85185.0,85181.0,1.1718131]
[1743156338918,0.0003382,85185.0,85181.0,2.34228078]
[1743156340350,0.0003382,85185.0,85181.0,2.20980078]
[1743156340573,0.0003382,85185.0,85181.0,2.34244078]
[1743156340781,0.0003382,85185.0,85181.0,1.57074878]
[1743156342659,2e-07,85182.0,85181.0,1.57074878]
[1743156342859,2e-07,85182.0,85181.0,1.25593878]
[1743156343860,2e-07,85182.0,85181.0,1.24993878]
[1743156344315,2e-07,85182.0,85181.0,1.25593878]
[1743156344729,2e-07,85182.0,85181.0,1.24993878]
[1743156345299,2e-07,85182.0,85181.0,1.25593878]
[1743156352582,2e-07,85182.0,85181.0,1.25610788]
[1743156353822,2e-07,85182.0,85181.0,1.25558788]
[1743156356480,2e-07,85182.0,85181.0,1.25550788]
[1743156356967,2e-07,85182.0,85181.0,0.05983639]
[1743156357144,0.3782002,85182.0,85181.0,0.25796471]
[1743156357317,0.0782002,85182.0,85181.0,0.38396135]
[1743156357479,2e-07,85182.0,85181.0,0.38396135]
[1743156357705,0.2465302,85182.0,85181.0,0.14096759]
[1743156358141,0.2465302,85182.0,85181.0,0.13496759]
[1743156358387,0.25823832,85182.0,85181.0,0.13496759]
[1743156358708,0.2465302,85182.0,85181.0,0.13496759]
[1743156358931,0.2465302,85182.0,85181.0,0.13296759]
[1743156359108,0.2465302,85182.0,85181.0,0.13896759]
[1743156359688,0.2465302,85182.0,85181.0,0.26584759]
[1743156360051,0.2465302,85182.0,85181.0,0.27184759]
[1743156360264,0.2347912,85182.0,85181.0,0.27184759]
[1743156360472,0.2465302,85182.0,85181.0,0.27184759]
[1743156360678,0.2347912,85182.0,85181.0,0.27184759]
[1743156360922,0.2347912,85182.0,85181.0,4.38062859]
[1743156361120,0.2347912,85182.0,85181.0,4.35591059]
[1743156361325,0.2347912,85182.0,85181.0,3.43747659]
[1743156361543,0.2347912,85182.0,85181.0,2.77497859]
[1743156361759,0.2347912,85182.0,85181.0,2.65359959]
[1743156361990,0.3347912,85182.0,85181.0,0.27184759]
[1743156362212,0.3465302,85182.0,85181.0,0.28284531]
[1743156363817,0.3465302,85182.0,85181.0,0.27184759]
[1743156364850,0.1000002,85182.0,85181.0,0.27184759]
[1743156365062,0.3347912,85182.0,85181.0,0.27184759]
[1743156365629,0.1000002,85182.0,85181.0,0.27184759]
[1743156366066,0.3347912,85182.0,85181.0,0.27184759]
[1743156366286,0.3347912,85182.0,85181.0,0.12442674]
[1743156366453,0.3465302,85182.0,85181.0,0.12442674]
[1743156366648,0.4292302,85182.0,85181.0,0.25710674]
[1743156368223,0.4292302,85182.0,85181.0,0.0101691]
[1743156370981,0.1827002,85182.0,85181.0,0.0101691]
[1743156371177,0.4174912,85182.0,85181.0,0.0101691]
[1743156371318,0.4292302,85182.0,85181.0,0.0101691]
[1743156375614,0.1827002,85182.0,85181.0,0.0101691]
[1743156375815,0.1827002,85182.0,85181.0,0.2449631]
[1743156376027,0.1000002,85182.0,85181.0,0.2449631]
[1743156376227,0.1000002,85182.0,85181.0,0.0101691]
[1743156376433,0.1000002,85182.0,85181.0,0.35922074]
[1743156376844,0.1000002,85182.0,85181.0,0.12442674]
[1743156377264,0.1000002,85182.0,85181.0,0.37095974]
[1743156377494,0.1000002,85182.0,85181.0,0.12442674]
[1743156377670,0.1000002,85182.0,85181.0,0.35922074]
[1743156378302,0.1000002,85182.0,85181.0,0.50363974]
[1743156383964,0.1000002,85182.0,85181.0,0.50351974]
[1743156384358,0.1000002,85182.0,85181.0,0.27152759]
[1743156384560,0.1000002,85182.0,85181.0,0.51806059]
[1743156386234,0.1000002,85182.0,85181.0,0.0101691]
[1743156386235,0.55534634,85182.0,85181.0,0.0101691]
[1743156386449,0.4725302,85182.0,85181.0,0.0101691]
[1743156386939,0.2260002,85182.0,85181.0,0.0101691]
[1743156387138,0.4725302,85182.0,85181.0,0.0041691]
[1743156387351,0.4725302,85182.0,85181.0,0.0081691]
[1743156387535,0.4725302,85182.0,85181.0,0.0041691]
[1743156387936,0.4725302,85182.0,85181.0,0.0071691]
[1743156389888,0.3944302,85182.0,85181.0,0.0071691]
[1743156391893,0.3826912,85182.0,85181.0,0.0071691]
[1743156392502,0.3944302,85182.0,85181.0,0.0071691]
[1743156393459,0.3826912,85182.0,85181.0,0.0071691]
[1743156395102,0.1479002,85182.0,85181.0,0.0071691]
[1743156395299,0.1479002,85182.0,85181.0,0.2419631]
[1743156395513,0.1000002,85182.0,85181.0,0.2419631]
[1743156397820,0.1000002,85182.0,85181.0,0.35622074]
[1743156398844,0.1000002,85182.0,85181.0,0.38250059]
[1743156401282,0.1000002,85182.0,85181.0,0.46130059]
[1743156402108,0.1000002,85182.0,85181.0,0.45630059]
[1743156402335,0.1000002,85182.0,85181.0,0.45413149]
[1743156402521,0.1000002,85182.0,85181.0,0.45913149]
[1743156403259,0.1000002,85182.0,85181.0,0.46513149]
[1743156403408,0.1000002,85182.0,85181.0,0.47613906]
[1743156403612,0.1000002,85182.0,85181.0,0.47013906]
[1743156403789,0.1000002,85182.0,85181.0,0.47613906]
[1743156404842,0.10008911,85182.0,85181.0,0.46513149]
[1743156405663,0.10008911,85182.0,85181.0,0.69588449]
[1743156406087,0.10008911,85182.0,85181.0,0.66986949]
[1743156406489,0.10008911,85182.0,85181.0,0.51841149]
[1743156406690,0.10008911,85182.0,85181.0,0.27187849]
[1743156407882,0.33488011,85182.0,85181.0,0.27187849]
[1743156408765,0.10008911,85182.0,85181.0,0.50667249]
[1743156409418,0.10008911,85182.0,85181.0,0.50684159]
[1743156409775,0.10008911,85182.0,85181.0,0.27204759]
[1743156410178,0.10008911,85182.0,85181.0,0.50684159]
[1743156410724,0.10008911,85182.0,85181.0,0.27204759]
[1743156411455,0.10008911,85182.0,85181.0,0.28305242]
[1743156411906,0.10008911,85182.0,85181.0,0.51784642]
[1743156412105,0.10008911,85182.0,85181.0,0.52958542]
[1743156413275,0.10008911,85182.0,85181.0,0.39750542]
[1743156413511,0.10008911,85182.0,85181.0,0.53026542]
[1743156429166,0.10008911,85182.0,85181.0,0.61156542]
[1743156429373,0.10008911,85182.0,85181.0,0.65736542]
[1743156429631,0.10008911,85182.0,85181.0,1.57822994]
[1743156429993,0.10008911,85182.0,85181.0,1.61349994]
[1743156430432,0.10008911,85182.0,85181.0,1.60249994]
[1743156430833,0.10008911,85182.0,85181.0,1.57780442]
[1743156431213,0.10008911,85182.0,85181.0,1.36425342]
[1743156431412,0.10008911,85182.0,85181.0,1.29225142]
[1743156431659,0.10008911,85182.0,85181.0,1.21351442]
[1743156432033,0.10008911,85182.0,85181.0,1.18216914]
[1743156432237,0.10008911,85182.0,85181.0,1.14549142]
[1743156433519,0.10008911,85182.0,85181.0,0.92246442]
[1743156433646,0.10008911,85182.0,85181.0,0.89478042]
[1743156435068,0.10008911,85182.0,85181.0,0.91826918]
[1743156437569,0.10008911,85182.0,85181.0,0.68185418]
[1743156437725,0.10008911,85182.0,85181.0,1.37165218]
[1743156437929,0.10008911,85182.0,85181.0,1.35810018]
[1743156440739,0.10008911,85182.0,85181.0,1.28854118]
[1743156441464,0.10008911,85182.0,85181.0,0.68185418]
[1743156442246,0.10008911,85182.0,85181.0,0.81919218]
[1743156443197,0.10008911,85182.0,85181.0,0.68643218]
[1743156443336,0.10008911,85182.0,85181.0,0.81851218]
[1743156444036,0.10008911,85182.0,85181.0,0.85515562]
[1743156444234,0.10008911,85182.0,85181.0,0.82351218]
[1743156444442,3.1e-07,85185.0,85184.0,0.34196485]
[1743156444658,3.1e-07,85185.0,85184.0,0.45622249]
[1743156445110,3.1e-07,85185.0,85184.0,0.4928597]
[1743156445364,3.1e-07,85185.0,85184.0,0.45622249]
[1743156445542,3.1e-07,85185.0,85184.0,0.82872249]
[1743156445759,0.0003384,85200.0,85184.0,0.82872249]
[1743156445760,7.1e-07,85200.0,85199.0,0.59102185]
[1743156445969,1.1e-07,85213.0,85212.0,0.551443]
[1743156446178,4e-07,85232.0,85231.0,0.26092885]
[1743156446383,4e-07,85232.0,85231.0,0.58928649]
[1743156446589,8.935e-05,85232.0,85231.0,0.26099849]
[1743156446786,8.935e-05,85232.0,85231.0,0.27273049]
[1743156447623,8.935e-05,85232.0,85231.0,0.28773532]
[1743156448325,8.935e-05,85232.0,85231.0,0.29273532]
[1743156449458,8.935e-05,85232.0,85231.0,0.28173049]
[1743156451700,8.935e-05,85232.0,85231.0,0.14953049]
[1743156451890,8.935e-05,85232.0,85231.0,0.28161049]
[1743156452973,8.935e-05,85232.0,85231.0,0.36331049]
[1743156453176,8.935e-05,85232.0,85231.0,2.20056749]
[1743156453386,8.935e-05,85232.0,85231.0,1.88193949]
[1743156453584,8.935e-05,85232.0,85231.0,1.52955149]
[1743156453787,8.935e-05,85232.0,85231.0,1.18407649]
[1743156454200,8.935e-05,85232.0,85231.0,1.19507649]
[1743156454708,8.935e-05,85232.0,85231.0,1.20608132]
[1743156454909,3.5e-07,85232.0,85231.0,1.21108132]
[1743156455114,3.5e-07,85232.0,85231.0,0.38131532]
[1743156456211,3.5e-07,85232.0,85231.0,0.37501049]
[1743156456598,3.5e-07,85232.0,85231.0,0.37517949]
[1743156456811,3.5e-07,85232.0,85231.0,0.67517949]
[1743156457146,3.5e-07,85232.0,85231.0,0.66417949]
[1743156457389,3.5e-07,85232.0,85231.0,0.67617949]
[1743156457837,3.5e-07,85232.0,85231.0,1.23465949]
[1743156458151,3.5e-07,85232.0,85231.0,1.28115949]
[1743156458596,3.5e-07,85232.0,85231.0,1.31716432]
[1743156459414,3.5e-07,85232.0,85231.0,1.55182032]
[1743156459590,3.5e-07,85232.0,85231.0,1.17546032]
[1743156461076,3.5e-07,85232.0,85231.0,1.03854032]
[1743156461273,3.5e-07,85232.0,85231.0,1.08876032]
[1743156466018,3.5e-07,85232.0,85231.0,0.95684032]
[1743156466245,3.5e-07,85232.0,85231.0,1.08876032]
[1743156471959,0.0003384,85251.0,85250.0,0.26087485]
[1743156472161,0.00078379,85251.0,85250.0,1.06537249]
[1743156473136,0.00078379,85251.0,85250.0,1.06837249]
[1743156473531,0.00078379,85251.0,85250.0,1.06937249]
[1743156474612,0.00078379,85251.0,85250.0,1.08037732]
[1743156477758,0.00078379,85251.0,85250.0,1.07937732]
[1743156478140,0.00078379,85251.0,85250.0,1.08137732]
[1743156478346,0.00078379,85251.0,85250.0,1.07937732]
[1743156478735,0.00078379,85251.0,85250.0,1.07637732]
[1743156479486,0.00078379,85251.0,85250.0,1.07937732]
[1743156479635,0.00078379,85251.0,85250.0,1.08237732]
[1743156479844,0.00078379,85251.0,85250.0,1.07937732]
[1743156480037,0.00078379,85251.0,85250.0,1.08437732]
[1743156480973,7.9e-07,85251.0,85250.0,1.08437732]
[1743156481091,7.9e-07,85251.0,85250.0,1.12098128]